{"text_format":"1","workbook":"xlsx","n_sheets":7,"sheets":["Data","Fund_Bal","Edit Data Macro","Create Data Macro","Check File","Buttons Macros","Module1"],"not_rendered":{"charts":0,"images":0,"macros":1,"external_links":0,"defined_names":12,"comments":0,"pivot_tables":0},"unopened":[{"sheet":"Edit Data Macro","index":2,"reason":"part_missing"},{"sheet":"Create Data Macro","index":3,"reason":"part_missing"},{"sheet":"Check File","index":4,"reason":"part_missing"},{"sheet":"Buttons Macros","index":5,"reason":"part_missing"},{"sheet":"Module1","index":6,"reason":"part_missing"}],"bounds":{"document_bytes":16777216,"sheet_cells":100000,"rows_first":2000,"rows_last":500,"rows_between":2000,"halvings":0,"cell_chars":16384,"cell_head_chars":4096},"cells_cut":0,"cells_raw":0,"read":"whole","date_system":"1900"}

{"sheet":"Data","index":0,"n_rows":309,"n_cols":28,"rows_kept":309,"cut":false,"hidden":false,"merged":[[1,1,1,8]]}
[null,"CHICO Budget Transfer Template",null,null,null,null,null,null,"C:\\PS\\MHORN11_10082008.dat"]
[null,"Instructions:  Only enter values in the Yellow highlighted cells! \n",null,null,null,null,null,null,null,null,null,"SOURCE","BUD","Journal ID",{"$f":"UPPER(C7)","v":""}]
[null,"Journal ID = First 8 char of Outlook UserID + 2 digits (10 char max).      Example:   mbarbera01, scottrel05, dforeman99",null,null,null,null,null,null,null,null,null,"BU","CHICO"]
[null,"Header Description = 30 char max.                                                                  Example:   Workstations Equipment",null,null,null,null,null,null,null,null,null,"LEDGER","BUDGETS"]
[null,null,null,null,null,null,null,null,null,null,null,"LEDGROUP","BUDGETS"]
[null,"Journal Date","Journal ID","Header Description","CheckTotal"]
[null,null,null,null,{"$f":"SUM(E10:E300)","v":0},null,"  <  Must equal zero!"]
["1","2","3",4,5,"6","7",8,"9","10","11","12","13",14,15,16,null,18,19,20,21,22,23,24,25,26,27,28]
["Ln","Fund","Dept","Account","Monetary Amount","Class","Program","Project","Line Description","FY","Scenario","Currency","Stat Code","Stat Amount","Budget Period","Annual Budget Amount",null,"Period 2","Period 3","Period 4","Period 5","Period 6","Period 7","Period 8","Period 9","Period 10","Period 11","Period 12"]
[1,null,null,null,null,null,null,null,null,"2023","OPERATING"]
[{"$f":"+A10+1","v":2},null,null,null,null,null,null,null,null,"2023","OPERATING"]
[{"$f":"A11+1","v":3},null,null,null,null,null,null,null,null,"2023","OPERATING"]
[{"$f":"A12+1","v":4},null,null,null,null,null,null,null,null,"2023","OPERATING"]
[{"$f":"A13+1","v":5},null,null,null,null,null,null,null,null,"2023","OPERATING"]
[{"$f":"A14+1","v":6},null,null,null,null,null,null,null,null,"2023","OPERATING"]
[7,null,null,null,null,null,null,null,null,"2023","OPERATING"]
[8,null,null,null,null,null,null,null,null,"2023","OPERATING"]
[9,null,null,null,null,null,null,null,null,"2023","OPERATING"]
[10,null,null,null,null,null,null,null,null,"2023","OPERATING"]
[11,null,null,null,null,null,null,null,null,"2023","OPERATING"]
[12,null,null,null,null,null,null,null,null,"2023","OPERATING"]
[13,null,null,null,null,null,null,null,null,"2023","OPERATING"]
[14,null,null,null,null,null,null,null,null,"2023","OPERATING"]
[15,null,null,null,null,null,null,null,null,"2023","OPERATING"]
[16,null,null,null,null,null,null,null,null,"2023","OPERATING"]
[17,null,null,null,null,null,null,null,null,"2023","OPERATING"]
[18,null,null,null,null,null,null,null,null,"2023","OPERATING"]
[19,null,null,null,null,null,null,null,null,"2023","OPERATING"]
[20,null,null,null,null,null,null,null,null,"2023","OPERATING"]
[{"$f":"+A29+1","v":21},null,null,null,null,null,null,null,null,"2023","OPERATING"]
[{"$f":"+A30+1","v":22},null,null,null,null,null,null,null,null,"2023","OPERATING"]
[23,null,null,null,null,null,null,null,null,"2023","OPERATING"]
[24,null,null,null,null,null,null,null,null,"2023","OPERATING"]
[25,null,null,null,null,null,null,null,null,"2023","OPERATING"]
[26,null,null,null,null,null,null,null,null,"2023","OPERATING"]
[27,null,null,null,null,null,null,null,null,"2023","OPERATING"]
[28,null,null,null,null,null,null,null,null,"2023","OPERATING"]
[29,null,null,null,null,null,null,null,null,"2023","OPERATING"]
[30,null,null,null,null,null,null,null,null,"2023","OPERATING"]
[31,null,null,null,null,null,null,null,null,"2023","OPERATING"]
[32,null,null,null,null,null,null,null,null,"2023","OPERATING"]
[33,null,null,null,null,null,null,null,null,"2023","OPERATING"]
[34,null,null,null,null,null,null,null,null,"2023","OPERATING"]
[35,null,null,null,null,null,null,null,null,"2023","OPERATING"]
[36,null,null,null,null,null,null,null,null,"2023","OPERATING"]
[37,null,null,null,null,null,null,null,null,"2023","OPERATING"]
[38,null,null,null,null,null,null,null,null,"2023","OPERATING"]
[39,null,null,null,null,null,null,null,null,"2023","OPERATING"]
[40,null,null,null,null,null,null,null,null,"2023","OPERATING"]
[41,null,null,null,null,null,null,null,null,"2023","OPERATING"]
[42,null,null,null,null,null,null,null,null,"2023","OPERATING"]
[43,null,null,null,null,null,null,null,null,"2023","OPERATING"]
[44,null,null,null,null,null,null,null,null,"2023","OPERATING"]
[45,null,null,null,null,null,null,null,null,"2023","OPERATING"]
[46,null,null,null,null,null,null,null,null,"2023","OPERATING"]
[47,null,null,null,null,null,null,null,null,"2023","OPERATING"]
[48,null,null,null,null,null,null,null,null,"2023","OPERATING"]
[49,null,null,null,null,null,null,null,null,"2023","OPERATING"]
[50,null,null,null,null,null,null,null,null,"2023","OPERATING"]
[51,null,null,null,null,null,null,null,null,"2023","OPERATING"]
[52,null,null,null,null,null,null,null,null,"2023","OPERATING"]
[53,null,null,null,null,null,null,null,null,"2023","OPERATING"]
[54,null,null,null,null,null,null,null,null,"2023","OPERATING"]
[55,null,null,null,null,null,null,null,null,"2023","OPERATING"]
[56,null,null,null,null,null,null,null,null,"2023","OPERATING"]
[57,null,null,null,null,null,null,null,null,"2023","OPERATING"]
[58,null,null,null,null,null,null,null,null,"2023","OPERATING"]
[59,null,null,null,null,null,null,null,null,"2023","OPERATING"]
[60,null,null,null,null,null,null,null,null,"2023","OPERATING"]
[61,null,null,null,null,null,null,null,null,"2023","OPERATING"]
[62,null,null,null,null,null,null,null,null,"2023","OPERATING"]
[63,null,null,null,null,null,null,null,null,"2023","OPERATING"]
[64,null,null,null,null,null,null,null,null,"2023","OPERATING"]
[65,null,null,null,null,null,null,null,null,"2023","OPERATING"]
[66,null,null,null,null,null,null,null,null,"2023","OPERATING"]
[67,null,null,null,null,null,null,null,null,"2023","OPERATING"]
[68,null,null,null,null,null,null,null,null,"2023","OPERATING"]
[69,null,null,null,null,null,null,null,null,"2023","OPERATING"]
[70,null,null,null,null,null,null,null,null,"2023","OPERATING"]
[71,null,null,null,null,null,null,null,null,"2023","OPERATING"]
[72,null,null,null,null,null,null,null,null,"2023","OPERATING"]
[73,null,null,null,null,null,null,null,null,"2023","OPERATING"]
[74,null,null,null,null,null,null,null,null,"2023","OPERATING"]
[75,null,null,null,null,null,null,null,null,"2023","OPERATING"]
[76,null,null,null,null,null,null,null,null,"2023","OPERATING"]
[77,null,null,null,null,null,null,null,null,"2023","OPERATING"]
[78,null,null,null,null,null,null,null,null,"2023","OPERATING"]
[79,null,null,null,null,null,null,null,null,"2023","OPERATING"]
[80,null,null,null,null,null,null,null,null,"2023","OPERATING"]
[81,null,null,null,null,null,null,null,null,"2023","OPERATING"]
[82,null,null,null,null,null,null,null,null,"2023","OPERATING"]
[83,null,null,null,null,null,null,null,null,"2023","OPERATING"]
[84,null,null,null,null,null,null,null,null,"2023","OPERATING"]
[85,null,null,null,null,null,null,null,null,"2023","OPERATING"]
[{"$f":"+A94+1","v":86},null,null,null,null,null,null,null,null,"2023","OPERATING"]
[87,null,null,null,null,null,null,null,null,"2023","OPERATING"]
[88,null,null,null,null,null,null,null,null,"2023","OPERATING"]
[89,null,null,null,null,null,null,null,null,"2023","OPERATING"]
[90,null,null,null,null,null,null,null,null,"2023","OPERATING"]
[91,null,null,null,null,null,null,null,null,"2023","OPERATING"]
[92,null,null,null,null,null,null,null,null,"2023","OPERATING"]
[93,null,null,null,null,null,null,null,null,"2023","OPERATING"]
[94,null,null,null,null,null,null,null,null,"2023","OPERATING"]
[95,null,null,null,null,null,null,null,null,"2023","OPERATING"]
[96,null,null,null,null,null,null,null,null,"2023","OPERATING"]
[97,null,null,null,null,null,null,null,null,"2023","OPERATING"]
[98,null,null,null,null,null,null,null,null,"2023","OPERATING"]
[99,null,null,null,null,null,null,null,null,"2023","OPERATING"]
[100,null,null,null,null,null,null,null,null,"2023","OPERATING"]
[101,null,null,null,null,null,null,null,null,"2023","OPERATING"]
[102,null,null,null,null,null,null,null,null,"2023","OPERATING"]
[103,null,null,null,null,null,null,null,null,"2023","OPERATING"]
[104,null,null,null,null,null,null,null,null,"2023","OPERATING"]
[105,null,null,null,null,null,null,null,null,"2023","OPERATING"]
[106,null,null,null,null,null,null,null,null,"2023","OPERATING"]
[107,null,null,null,null,null,null,null,null,"2023","OPERATING"]
[108,null,null,null,null,null,null,null,null,"2023","OPERATING"]
[109,null,null,null,null,null,null,null,null,"2023","OPERATING"]
[110,null,null,null,null,null,null,null,null,"2023","OPERATING"]
[111,null,null,null,null,null,null,null,null,"2023","OPERATING"]
[112,null,null,null,null,null,null,null,null,"2023","OPERATING"]
[113,null,null,null,null,null,null,null,null,"2023","OPERATING"]
[114,null,null,null,null,null,null,null,null,"2023","OPERATING"]
[115,null,null,null,null,null,null,null,null,"2023","OPERATING"]
[116,null,null,null,null,null,null,null,null,"2023","OPERATING"]
[117,null,null,null,null,null,null,null,null,"2023","OPERATING"]
[118,null,null,null,null,null,null,null,null,"2023","OPERATING"]
[119,null,null,null,null,null,null,null,null,"2023","OPERATING"]
[120,null,null,null,null,null,null,null,null,"2023","OPERATING"]
[121,null,null,null,null,null,null,null,null,"2023","OPERATING"]
[122,null,null,null,null,null,null,null,null,"2023","OPERATING"]
[123,null,null,null,null,null,null,null,null,"2023","OPERATING"]
[124,null,null,null,null,null,null,null,null,"2023","OPERATING"]
[125,null,null,null,null,null,null,null,null,"2023","OPERATING"]
[126,null,null,null,null,null,null,null,null,"2023","OPERATING"]
[127,null,null,null,null,null,null,null,null,"2023","OPERATING"]
[128,null,null,null,null,null,null,null,null,"2023","OPERATING"]
[129,null,null,null,null,null,null,null,null,"2023","OPERATING"]
[130,null,null,null,null,null,null,null,null,"2023","OPERATING"]
[131,null,null,null,null,null,null,null,null,"2023","OPERATING"]
[132,null,null,null,null,null,null,null,null,"2023","OPERATING"]
[133,null,null,null,null,null,null,null,null,"2023","OPERATING"]
[134,null,null,null,null,null,null,null,null,"2023","OPERATING"]
[135,null,null,null,null,null,null,null,null,"2023","OPERATING"]
[136,null,null,null,null,null,null,null,null,"2023","OPERATING"]
[137,null,null,null,null,null,null,null,null,"2023","OPERATING"]
[138,null,null,null,null,null,null,null,null,"2023","OPERATING"]
[139,null,null,null,null,null,null,null,null,"2023","OPERATING"]
[140,null,null,null,null,null,null,null,null,"2023","OPERATING"]
[141,null,null,null,null,null,null,null,null,"2023","OPERATING"]
[142,null,null,null,null,null,null,null,null,"2023","OPERATING"]
[143,null,null,null,null,null,null,null,null,"2023","OPERATING"]
[144,null,null,null,null,null,null,null,null,"2023","OPERATING"]
[145,null,null,null,null,null,null,null,null,"2023","OPERATING"]
[146,null,null,null,null,null,null,null,null,"2023","OPERATING"]
[147,null,null,null,null,null,null,null,null,"2023","OPERATING"]
[148,null,null,null,null,null,null,null,null,"2023","OPERATING"]
[149,null,null,null,null,null,null,null,null,"2023","OPERATING"]
[{"$f":"+A158+1","v":150},null,null,null,null,null,null,null,null,"2023","OPERATING"]
[151,null,null,null,null,null,null,null,null,"2023","OPERATING"]
[152,null,null,null,null,null,null,null,null,"2023","OPERATING"]
[153,null,null,null,null,null,null,null,null,"2023","OPERATING"]
[154,null,null,null,null,null,null,null,null,"2023","OPERATING"]
[155,null,null,null,null,null,null,null,null,"2023","OPERATING"]
[156,null,null,null,null,null,null,null,null,"2023","OPERATING"]
[157,null,null,null,null,null,null,null,null,"2023","OPERATING"]
[158,null,null,null,null,null,null,null,null,"2023","OPERATING"]
[159,null,null,null,null,null,null,null,null,"2023","OPERATING"]
[160,null,null,null,null,null,null,null,null,"2023","OPERATING"]
[161,null,null,null,null,null,null,null,null,"2023","OPERATING"]
[162,null,null,null,null,null,null,null,null,"2023","OPERATING"]
[163,null,null,null,null,null,null,null,null,"2023","OPERATING"]
[164,null,null,null,null,null,null,null,null,"2023","OPERATING"]
[165,null,null,null,null,null,null,null,null,"2023","OPERATING"]
[166,null,null,null,null,null,null,null,null,"2023","OPERATING"]
[167,null,null,null,null,null,null,null,null,"2023","OPERATING"]
[168,null,null,null,null,null,null,null,null,"2023","OPERATING"]
[169,null,null,null,null,null,null,null,null,"2023","OPERATING"]
[170,null,null,null,null,null,null,null,null,"2023","OPERATING"]
[171,null,null,null,null,null,null,null,null,"2023","OPERATING"]
[172,null,null,null,null,null,null,null,null,"2023","OPERATING"]
[173,null,null,null,null,null,null,null,null,"2023","OPERATING"]
[174,null,null,null,null,null,null,null,null,"2023","OPERATING"]
[175,null,null,null,null,null,null,null,null,"2023","OPERATING"]
[176,null,null,null,null,null,null,null,null,"2023","OPERATING"]
[177,null,null,null,null,null,null,null,null,"2023","OPERATING"]
[178,null,null,null,null,null,null,null,null,"2023","OPERATING"]
[179,null,null,null,null,null,null,null,null,"2023","OPERATING"]
[180,null,null,null,null,null,null,null,null,"2023","OPERATING"]
[181,null,null,null,null,null,null,null,null,"2023","OPERATING"]
[182,null,null,null,null,null,null,null,null,"2023","OPERATING"]
[183,null,null,null,null,null,null,null,null,"2023","OPERATING"]
[184,null,null,null,null,null,null,null,null,"2023","OPERATING"]
[185,null,null,null,null,null,null,null,null,"2023","OPERATING"]
[186,null,null,null,null,null,null,null,null,"2023","OPERATING"]
[187,null,null,null,null,null,null,null,null,"2023","OPERATING"]
[188,null,null,null,null,null,null,null,null,"2023","OPERATING"]
[189,null,null,null,null,null,null,null,null,"2023","OPERATING"]
[190,null,null,null,null,null,null,null,null,"2023","OPERATING"]
[191,null,null,null,null,null,null,null,null,"2023","OPERATING"]
[192,null,null,null,null,null,null,null,null,"2023","OPERATING"]
[193,null,null,null,null,null,null,null,null,"2023","OPERATING"]
[194,null,null,null,null,null,null,null,null,"2023","OPERATING"]
[195,null,null,null,null,null,null,null,null,"2023","OPERATING"]
[196,null,null,null,null,null,null,null,null,"2023","OPERATING"]
[197,null,null,null,null,null,null,null,null,"2023","OPERATING"]
[198,null,null,null,null,null,null,null,null,"2023","OPERATING"]
[199,null,null,null,null,null,null,null,null,"2023","OPERATING"]
[200,null,null,null,null,null,null,null,null,"2023","OPERATING"]
[201,null,null,null,null,null,null,null,null,"2023","OPERATING"]
[202,null,null,null,null,null,null,null,null,"2023","OPERATING"]
[203,null,null,null,null,null,null,null,null,"2023","OPERATING"]
[204,null,null,null,null,null,null,null,null,"2023","OPERATING"]
[205,null,null,null,null,null,null,null,null,"2023","OPERATING"]
[206,null,null,null,null,null,null,null,null,"2023","OPERATING"]
[207,null,null,null,null,null,null,null,null,"2023","OPERATING"]
[208,null,null,null,null,null,null,null,null,"2023","OPERATING"]
[209,null,null,null,null,null,null,null,null,"2023","OPERATING"]
[210,null,null,null,null,null,null,null,null,"2023","OPERATING"]
[211,null,null,null,null,null,null,null,null,"2023","OPERATING"]
[212,null,null,null,null,null,null,null,null,"2023","OPERATING"]
[213,null,null,null,null,null,null,null,null,"2023","OPERATING"]
[{"$f":"+A222+1","v":214},null,null,null,null,null,null,null,null,"2023","OPERATING"]
[215,null,null,null,null,null,null,null,null,"2023","OPERATING"]
[216,null,null,null,null,null,null,null,null,"2023","OPERATING"]
[217,null,null,null,null,null,null,null,null,"2023","OPERATING"]
[218,null,null,null,null,null,null,null,null,"2023","OPERATING"]
[219,null,null,null,null,null,null,null,null,"2023","OPERATING"]
[220,null,null,null,null,null,null,null,null,"2023","OPERATING"]
[221,null,null,null,null,null,null,null,null,"2023","OPERATING"]
[222,null,null,null,null,null,null,null,null,"2023","OPERATING"]
[223,null,null,null,null,null,null,null,null,"2023","OPERATING"]
[224,null,null,null,null,null,null,null,null,"2023","OPERATING"]
[225,null,null,null,null,null,null,null,null,"2023","OPERATING"]
[226,null,null,null,null,null,null,null,null,"2023","OPERATING"]
[227,null,null,null,null,null,null,null,null,"2023","OPERATING"]
[228,null,null,null,null,null,null,null,null,"2023","OPERATING"]
[229,null,null,null,null,null,null,null,null,"2023","OPERATING"]
[230,null,null,null,null,null,null,null,null,"2023","OPERATING"]
[231,null,null,null,null,null,null,null,null,"2023","OPERATING"]
[232,null,null,null,null,null,null,null,null,"2023","OPERATING"]
[233,null,null,null,null,null,null,null,null,"2023","OPERATING"]
[234,null,null,null,null,null,null,null,null,"2023","OPERATING"]
[235,null,null,null,null,null,null,null,null,"2023","OPERATING"]
[236,null,null,null,null,null,null,null,null,"2023","OPERATING"]
[237,null,null,null,null,null,null,null,null,"2023","OPERATING"]
[238,null,null,null,null,null,null,null,null,"2023","OPERATING"]
[239,null,null,null,null,null,null,null,null,"2023","OPERATING"]
[240,null,null,null,null,null,null,null,null,"2023","OPERATING"]
[241,null,null,null,null,null,null,null,null,"2023","OPERATING"]
[242,null,null,null,null,null,null,null,null,"2023","OPERATING"]
[243,null,null,null,null,null,null,null,null,"2023","OPERATING"]
[244,null,null,null,null,null,null,null,null,"2023","OPERATING"]
[245,null,null,null,null,null,null,null,null,"2023","OPERATING"]
[246,null,null,null,null,null,null,null,null,"2023","OPERATING"]
[247,null,null,null,null,null,null,null,null,"2023","OPERATING"]
[248,null,null,null,null,null,null,null,null,"2023","OPERATING"]
[249,null,null,null,null,null,null,null,null,"2023","OPERATING"]
[250,null,null,null,null,null,null,null,null,"2023","OPERATING"]
[251,null,null,null,null,null,null,null,null,"2023","OPERATING"]
[252,null,null,null,null,null,null,null,null,"2023","OPERATING"]
[253,null,null,null,null,null,null,null,null,"2023","OPERATING"]
[254,null,null,null,null,null,null,null,null,"2023","OPERATING"]
[255,null,null,null,null,null,null,null,null,"2023","OPERATING"]
[256,null,null,null,null,null,null,null,null,"2023","OPERATING"]
[257,null,null,null,null,null,null,null,null,"2023","OPERATING"]
[258,null,null,null,null,null,null,null,null,"2023","OPERATING"]
[259,null,null,null,null,null,null,null,null,"2023","OPERATING"]
[260,null,null,null,null,null,null,null,null,"2023","OPERATING"]
[261,null,null,null,null,null,null,null,null,"2023","OPERATING"]
[262,null,null,null,null,null,null,null,null,"2023","OPERATING"]
[263,null,null,null,null,null,null,null,null,"2023","OPERATING"]
[264,null,null,null,null,null,null,null,null,"2023","OPERATING"]
[265,null,null,null,null,null,null,null,null,"2023","OPERATING"]
[266,null,null,null,null,null,null,null,null,"2023","OPERATING"]
[267,null,null,null,null,null,null,null,null,"2023","OPERATING"]
[268,null,null,null,null,null,null,null,null,"2023","OPERATING"]
[269,null,null,null,null,null,null,null,null,"2023","OPERATING"]
[270,null,null,null,null,null,null,null,null,"2023","OPERATING"]
[271,null,null,null,null,null,null,null,null,"2023","OPERATING"]
[272,null,null,null,null,null,null,null,null,"2023","OPERATING"]
[273,null,null,null,null,null,null,null,null,"2023","OPERATING"]
[274,null,null,null,null,null,null,null,null,"2023","OPERATING"]
[275,null,null,null,null,null,null,null,null,"2023","OPERATING"]
[276,null,null,null,null,null,null,null,null,"2023","OPERATING"]
[277,null,null,null,null,null,null,null,null,"2023","OPERATING"]
[{"$f":"+A286+1","v":278},null,null,null,null,null,null,null,null,"2023","OPERATING"]
[279,null,null,null,null,null,null,null,null,"2023","OPERATING"]
[280,null,null,null,null,null,null,null,null,"2023","OPERATING"]
[281,null,null,null,null,null,null,null,null,"2023","OPERATING"]
[282,null,null,null,null,null,null,null,null,"2023","OPERATING"]
[283,null,null,null,null,null,null,null,null,"2023","OPERATING"]
[284,null,null,null,null,null,null,null,null,"2023","OPERATING"]
[285,null,null,null,null,null,null,null,null,"2023","OPERATING"]
[286,null,null,null,null,null,null,null,null,"2023","OPERATING"]
[287,null,null,null,null,null,null,null,null,"2023","OPERATING"]
[288,null,null,null,null,null,null,null,null,"2023","OPERATING"]
[289,null,null,null,null,null,null,null,null,"2023","OPERATING"]
[290,null,null,null,null,null,null,null,null,"2023","OPERATING"]
[291,null,null,null,null,null,null,null,null,"2023","OPERATING"]
[292,null,null,null,null,null,null,null,null,"2023","OPERATING"]
[293,null,null,null,null,null,null,null,null,"2023","OPERATING"]
[294,null,null,null,null,null,null,null,null,"2023","OPERATING"]
[{"$f":"+A303+1","v":295},null,null,null,null,null,null,null,null,"2023","OPERATING"]
[296,null,null,null,null,null,null,null,null,"2023","OPERATING"]
[297,null,null,null,null,null,null,null,null,"2023","OPERATING"]
[298,null,null,null,null,null,null,null,null,"2023","OPERATING"]
[299,null,null,null,null,null,null,null,null,"2023","OPERATING"]
[300,null,null,null,null,null,null,null,null,"2023","OPERATING"]

{"sheet":"Fund_Bal","index":1,"n_rows":0,"n_cols":0,"rows_kept":0,"cut":false,"hidden":false,"merged":[]}